[Event "FIDE Zonal 4-2 Women 2023"]
[Site "Dimbroko"]
[Date "2023.03.27"]
[Round "4.4"]
[White "Oyenga, Justine Anassika"]
[Black "Kouassi Edichy Berenice"]
[Result "0-1"]
[ECO "B01"]
[WhiteElo "1187"]
[BlackElo "1128"]
[Annotator "NA RC COMBH"]
[PlyCount "102"]
[EventDate "2023.03.25"]
[EventType "swiss"]
[EventCountry "IVO"]
[SourceTitle "playchess.com"]
[Source "ChessBase"]
[SourceQuality "1"]
[TimeControl "40/5400+30:1800+30"]

1. e4 {[%emt 0:00:11]} d5 {[%emt 0:00:43]} 2. exd5 {[%emt 0:03:03]} Nf6 {[%emt 0:00:24]} 3. c4 {[%emt 0:01:22]} g6 {[%emt 0:02:39]} 4. Nc3 {[%emt 0:01:14]} Bg7 {[%emt 0:01:31]} 5. Nf3 {[%emt 0:00:52]} O-O {[%emt 0:01:07]} 6. Be2 {[%emt 0:00:10]} c6 {[%emt 0:01:08]} 7. Qb3 {[%emt 0:02:23]} cxd5 {[%emt 0:09:47]} 8. cxd5 {[%emt 0:00:37]} Qa5 {[%emt 0:02:01]} 9. O-O {[%emt 0:03:13]} Rd8 {[%emt 0:00:34]} 10. Bc4 {[%emt 0:01:07]} Nbd7 {[%emt 0:06:01]} 11. d4 {[%emt 0:03:41]} Nb6 {[%emt 0:02:56]} 12. Re1 {[%emt 0:11:12]} Nxc4 {[%emt 0:03:12]} 13. Qxc4 {[%emt 0:00:41]} Nxd5 {[%emt 0:01:06]} 14. Nxd5 {[%emt 0:00:55]} Rxd5 {[%emt 0:04:23]} 15. Bd2 {[%emt 0:02:23]} Qd8 {[%emt 0:00:25]} 16. Bc3 {[%emt 0:03:13]} Bg4 {[%emt 0:01:51]} 17. Ne5 {[%emt 0:03:26]} Be6 {[%emt 0:02:17]} 18. Qe2 {[%emt 0:14:38]} Rc8 {[%emt 0:05:35]} 19. Rad1 {[%emt 0:02:56]} b5 {[%emt 0:52:20]} 20. Rd3 {[%emt 0:02:49]} a5 {[%emt 0:00:00]} 21. b3 {[%emt 0:10:43]} b4 {[%emt 0:00:00]} 22. Bb2 {[%emt 0:01:07]} Bf5 {[%emt 0:00:00]} 23. Re3 {[%emt 0:01:00]} Rc2 {[%emt 0:00:00]} 24. Qf1 {[%emt 0:06:05]} Rxb2 {[%emt 0:00:00]} 25. Nc6 {[%emt 0:02:13]} Qd6 {[%emt 0:00:00]} 26. Nxe7+ {[%emt 0:00:32]} Kh8 {[%emt 0:00:00]} 27. Nxd5 {[%emt 0:00:31]} Bxd4 {[%emt 0:00:00]} 28. Rf3 {[%emt 0:07:16]} Qxd5 {[%emt 0:00:00]} 29. Rf4 {[%emt 0:04:06]} Rxa2 {[%emt 0:00:00]} 30. Rd1 {[%emt 0:00:28]} Be4 {[%emt 0:00:00]} 31. Rxd4 {[%emt 0:03:38]} Qg5 {[%emt 0:00:00]} 32. Rdxe4 {[%emt 0:00:26]} a4 {[%emt 0:00:20]} 33. h4 {[%emt 0:00:42]} Qd5 {[%emt 0:00:25]} 34. Re1 {[%emt 0:01:11]} Qxb3 {[%emt 0:01:52]} 35. Re8+ {[%emt 0:00:32]} Kg7 {[%emt 0:00:05]} 36. Rb8 {[%emt 0:00:37]} Qc3 {[%emt 0:01:26]} 37. Rbxb4 {[%emt 0:00:28]} Ra1 {[%emt 0:00:18]} 38. Qxa1 {[%emt 0:01:07]} Qxa1+ {[%emt 0:00:14]} 39. Kh2 {[%emt 0:00:08]} a3 {[%emt 0:00:20]} 40. Rb7 {[%emt 0:00:51]} a2 {[%emt 0:02:18]} 41. Rbxf7+ {[%emt 0:30:29]} Kh6 {[%emt 0:30:18]} 42. g4 {[%emt 0:07:14]} g5 {[%emt 0:00:00]} 43. hxg5+ {[%emt 0:00:00]} Kg6 {[%emt 0:00:00]} 44. Ra7 {[%emt 0:00:00]} Qe5 {[%emt 0:00:00]} 45. Kg3 {[%emt 0:00:00]} Kxg5 {[%emt 0:00:00]} 46. Rg7+ {[%emt 0:00:00]} Qxg7 {[%emt 0:00:00]} 47. Rf5+ {[%emt 0:00:00]} Kg6 {[%emt 0:00:00]} 48. f4 {[%emt 0:00:00]} a1=Q {[%emt 0:00:00]} 49. Rg5+ {[%emt 0:00:00]} Kf7 {[%emt 0:00:00]} 50. Rxg7+ {[%emt 0:00:00]} Qxg7 {[%emt 0:00:00]} 51. f5 {[%emt 0:00:00]} Kf6 {[%emt 0:00:00]} 0-1

[Event "FIDE Zonal 4-2 Women 2023"]
[Site "Dimbroko"]
[Date "2023.03.27"]
[Round "5.1"]
[White "Benson, Maud"]
[Black "Marochkina, Nadezhda Valerevna"]
[Result "1-0"]
[ECO "D02"]
[WhiteElo "1381"]
[BlackElo "1689"]
[Annotator "NA RC COMBH"]
[PlyCount "91"]
[EventDate "2023.03.25"]
[EventType "swiss"]
[EventCountry "IVO"]
[SourceTitle "playchess.com"]
[Source "ChessBase"]
[SourceQuality "1"]
[TimeControl "40/5400+30:1800+30"]

1. d4 {[%emt 0:00:18]} d5 {[%emt 0:00:06]} 2. g3 {[%emt 0:00:13]} Bf5 {[%emt 0:00:21]} 3. Bg2 {[%emt 0:00:34]} Nf6 {[%emt 0:00:21]} 4. Nf3 {[%emt 0:01:00]} e6 {[%emt 0:00:19]} 5. O-O {[%emt 0:00:22]} c5 {[%emt 0:00:30]} 6. c4 {[%emt 0:01:01]} dxc4 {[%emt 0:03:53]} 7. Qa4+ {[%emt 0:00:58]} Nbd7 {[%emt 0:00:44]} 8. Ne5 {[%emt 0:01:51]} Qc8 {[%emt 0:05:16]} 9. dxc5 {[%emt 0:06:40]} Bxc5 {[%emt 0:07:48]} 10. Nxd7 {[%emt 0:04:40]} Nxd7 {[%emt 0:00:54]} 11. Rd1 {[%emt 0:11:08]} Rb8 {[%emt 0:01:00]} 12. Nc3 {[%emt 0:14:35]} a6 {[%emt 0:01:38]} 13. e4 {[%emt 0:00:18]} b5 {[%emt 0:01:29]} 14. Qc2 {[%emt 0:00:47]} Bg6 {[%emt 0:00:40]} 15. Qd2 {[%emt 0:05:22]} Ne5 {[%emt 0:01:38]} 16. Qe2 {[%emt 0:07:36]} O-O {[%emt 0:02:16]} 17. Bf4 {[%emt 0:02:23]} f6 {[%emt 0:01:43]} 18. Kh1 {[%emt 0:05:47]} Nd3 {[%emt 0:01:13]} 19. Rxd3 {[%emt 0:01:12]} cxd3 {[%emt 0:00:13]} 20. Qxd3 {[%emt 0:00:24]} e5 {[%emt 0:00:41]} 21. Be3 {[%emt 0:01:31]} Rd8 {[%emt 0:00:47]} 22. Nd5 {[%emt 0:01:51]} Bf8 {[%emt 0:04:35]} 23. Qb3 {[%emt 0:04:44]} Bf7 {[%emt 0:00:57]} 24. Rc1 {[%emt 0:01:26]} Qb7 {[%emt 0:01:17]} 25. Qd3 {[%emt 0:01:39]} Rbc8 {[%emt 0:01:41]} 26. Rd1 {[%emt 0:00:18]} Bxd5 {[%emt 0:03:59]} 27. exd5 {[%emt 0:00:13]} Bd6 {[%emt 0:00:50]} 28. Bh3 {[%emt 0:02:55]} Rc7 {[%emt 0:01:31]} 29. Bf5 {[%emt 0:00:33]} h6 {[%emt 0:02:10]} 30. Be6+ {[%emt 0:01:12]} Kh8 {[%emt 0:01:07]} 31. Qg6 {[%emt 0:02:04]} Rf8 {[%emt 0:02:54]} 32. Bf5 {[%emt 0:01:09]} Kg8 {[%emt 0:00:25]} 33. Bxh6 {[%emt 0:00:59]} Qa7 {[%emt 0:01:53]} 34. Qh7+ {[%emt 0:04:40]} Kf7 {[%emt 0:00:07]} 35. Qxg7+ {[%emt 0:04:17]} Ke8 {[%emt 0:01:20]} 36. Qg6+ {[%emt 0:02:31]} Rff7 {[%emt 0:00:31]} 37. Be3 {[%emt 0:02:01]} Qb7 {[%emt 0:03:16]} 38. Be6 {[%emt 0:00:44]} a5 {[%emt 0:02:00]} 39. Bxf7+ {[%emt 0:00:47]} Rxf7 {[%emt 0:00:06]} 40. Qg8+ {[%emt 0:00:28]} Ke7 {[%emt 0:00:44]} 41. Qg4 {[%emt 0:30:41]} f5 {[%emt 0:30:58]} 42. Qg6 {[%emt 0:02:06]} Qc7 {[%emt 0:01:27]} 43. Qe6+ {[%emt 0:00:37]} Kf8 {[%emt 0:00:10]} 44. Rc1 {[%emt 0:01:25]} Qe7 {[%emt 0:00:36]} 45. Rc8+ {[%emt 0:00:49]} Kg7 {[%emt 0:00:07]} 46. Qh6# {[%emt 0:00:19]} 1-0

[Event "FIDE Zonal 4-2 Women 2023"]
[Site "Dimbroko"]
[Date "2023.03.27"]
[Round "5.2"]
[White "Ayemou Mazan Emmanuela Esther"]
[Black "Yavo Tchetche, Marie"]
[Result "0-1"]
[ECO "C01"]
[WhiteElo "1556"]
[BlackElo "1413"]
[Annotator "NA RC COMBH"]
[PlyCount "124"]
[EventDate "2023.03.25"]
[EventType "swiss"]
[EventCountry "IVO"]
[SourceTitle "playchess.com"]
[Source "ChessBase"]
[SourceQuality "1"]
[TimeControl "40/5400+30:1800+30"]

1. e4 {[%emt 0:00:05]} e6 {[%emt 0:00:32]} 2. d4 {[%emt 0:00:03]} d5 {[%emt 0:02:00]} 3. exd5 {[%emt 0:00:29]} exd5 {[%emt 0:00:18]} 4. Nf3 {[%emt 0:00:08]} Nf6 {[%emt 0:00:31]} 5. Bd3 {[%emt 0:00:08]} Bd6 {[%emt 0:00:23]} 6. O-O {[%emt 0:00:14]} O-O {[%emt 0:00:10]} 7. c3 {[%emt 0:00:30]} c6 {[%emt 0:00:43]} 8. h3 {[%emt 0:00:33]} h6 {[%emt 0:00:14]} 9. Re1 {[%emt 0:00:28]} Re8 {[%emt 0:03:15]} 10. Ne5 {[%emt 0:07:41]} Nbd7 {[%emt 0:00:26]} 11. Bf4 {[%emt 0:00:30]} Qc7 {[%emt 0:01:21]} 12. Qe2 {[%emt 0:03:56]} Nxe5 {[%emt 0:02:56]} 13. dxe5 {[%emt 0:20:43]} Nd7 {[%emt 0:00:25]} 14. Nd2 {[%emt 0:01:08]} Nxe5 {[%emt 0:00:57]} 15. Nf3 {[%emt 0:07:34]} Nxf3+ {[%emt 1:23:49]} 16. Qxf3 {[%emt 0:54:20]} Bd7 {[%emt 0:00:00]} 17. Bd2 {[%emt 0:00:00]} Rxe1+ {[%emt 0:00:00]} 18. Rxe1 {[%emt 0:00:00]} Re8 {[%emt 0:00:00]} 19. Rxe8+ {[%emt 0:00:00]} Bxe8 {[%emt 0:00:00]} 20. Qf5 {[%emt 0:00:00]} g6 {[%emt 0:00:00]} 21. Qf3 {[%emt 0:00:00]} Bf8 {[%emt 0:00:00]} 22. Bf4 {[%emt 0:00:00]} Qe7 {[%emt 0:00:00]} 23. Be3 {[%emt 0:00:00]} a6 {[%emt 0:00:00]} 24. c4 {[%emt 0:00:00]} dxc4 {[%emt 0:04:30]} 25. Bxc4 {[%emt 0:04:30]} Bg7 {[%emt 0:00:00]} 26. Qg4 {[%emt 0:00:00]} Kh7 {[%emt 0:00:00]} 27. b3 {[%emt 0:00:00]} b5 {[%emt 0:00:00]} 28. Bd3 {[%emt 0:00:00]} Qd6 {[%emt 0:00:00]} 29. Qe4 {[%emt 0:00:00]} Bd7 {[%emt 0:00:00]} 30. Bf4 {[%emt 0:00:00]} Qd5 {[%emt 0:03:00]} 31. Qxd5 {[%emt 0:03:00]} cxd5 {[%emt 0:00:00]} 32. Kf1 {[%emt 0:00:00]} Bd4 {[%emt 0:00:00]} 33. Ke2 {[%emt 0:00:00]} Kg7 {[%emt 0:00:00]} 34. Be3 {[%emt 0:00:00]} Bc3 {[%emt 0:00:00]} 35. a4 {[%emt 0:00:00]} bxa4 {[%emt 0:00:00]} 36. bxa4 {[%emt 0:00:00]} Bxa4 {[%emt 0:03:00]} 37. Bxa6 {[%emt 0:00:00]} Bc2 {[%emt 0:00:00]} 38. Bb7 {[%emt 0:00:00]} d4 {[%emt 0:00:00]} 39. Bf4 {[%emt 0:00:00]} d3+ {[%emt 0:01:30]} 40. Kf1 {[%emt 0:04:30]} d2 {[%emt 0:00:00]} 41. Bxd2 {[%emt 0:00:00]} Bxd2 {[%emt 0:00:00]} 42. g4 {[%emt 0:00:00]} Kf6 {[%emt 0:31:30]} 43. Bd5 {[%emt 0:31:30]} Bd3+ {[%emt 0:00:00]} 44. Kg2 {[%emt 0:00:00]} g5 {[%emt 0:00:00]} 45. f3 {[%emt 0:00:00]} Ke7 {[%emt 0:00:00]} 46. Ba8 {[%emt 0:00:00]} Kd6 {[%emt 0:00:00]} 47. Bb7 {[%emt 0:00:00]} Ke5 {[%emt 0:00:00]} 48. Bc8 {[%emt 0:00:00]} Kf4 {[%emt 0:03:00]} 49. Bb7 {[%emt 0:03:00]} Ke3 {[%emt 0:00:00]} 50. Bd5 {[%emt 0:00:00]} f6 {[%emt 0:00:00]} 51. Bc6 {[%emt 0:00:00]} Ke2 {[%emt 0:00:00]} 52. h4 {[%emt 0:00:00]} gxh4 {[%emt 0:00:00]} 53. Kh3 {[%emt 0:00:00]} Be1 {[%emt 0:00:00]} 54. f4 {[%emt 0:00:00]} Bg3 {[%emt 0:00:00]} 55. Bd7 {[%emt 0:00:00]} Kf2 {[%emt 0:03:30]} 56. g5 {[%emt 0:03:30]} hxg5 {[%emt 0:00:00]} 57. fxg5 {[%emt 0:00:00]} fxg5 {[%emt 0:00:00]} 58. Kg4 {[%emt 0:00:00]} Bf4 {[%emt 0:00:00]} 59. Bc6 {[%emt 0:00:00]} Be2+ {[%emt 0:00:00]} 60. Kh3 {[%emt 0:00:00]} Bf1+ {[%emt 0:02:30]} 61. Kg4 {[%emt 0:02:30]} h3 {[%emt 0:00:00]} 62. Bh1 {[%emt 0:00:00]} h2 {[%emt 0:00:00]} 0-1

[Event "FIDE Zonal 4-2 Women 2023"]
[Site "Dimbroko"]
[Date "2023.03.27"]
[Round "5.3"]
[White "Abigail Karyah"]
[Black "Princess K. Banney"]
[Result "1-0"]
[ECO "C62"]
[WhiteElo "1620"]
[BlackElo "1061"]
[Annotator "NA RC COMBH"]
[PlyCount "115"]
[EventDate "2023.03.25"]
[EventType "swiss"]
[EventCountry "IVO"]
[SourceTitle "playchess.com"]
[Source "ChessBase"]
[SourceQuality "1"]
[TimeControl "40/5400+30:1800+30"]

1. e4 {[%emt 0:00:33]} e5 {[%emt 1:31:00]} 2. Nf3 {[%emt 1:30:57]} Nc6 {[%emt 0:00:00]} 3. Bb5 {[%emt 0:00:00]} d6 {[%emt 0:00:00]} 4. Bxc6+ {[%emt 0:00:00]} bxc6 {[%emt 0:00:00]} 5. d4 {[%emt 0:00:00]} Bg4 {[%emt 0:00:00]} 6. dxe5 {[%emt 0:00:00]} dxe5 {[%emt 0:00:00]} 7. Qxd8+ {[%emt 0:00:00]} Rxd8 {[%emt 0:00:00]} 8. Nbd2 {[%emt 0:00:00]} Bd6 {[%emt 0:00:00]} 9. O-O {[%emt 0:00:00]} Nf6 {[%emt 0:00:00]} 10. Re1 {[%emt 0:00:00]} O-O {[%emt 0:00:00]} 11. h3 {[%emt 0:00:00]} Bh5 {[%emt 0:00:00]} 12. g4 {[%emt 0:00:00]} Bg6 {[%emt 0:00:00]} 13. Nh4 {[%emt 0:00:00]} Bb4 {[%emt 0:00:00]} 14. Nxg6 {[%emt 0:00:00]} fxg6 {[%emt 0:00:00]} 15. c3 {[%emt 0:00:00]} Bc5 {[%emt 0:00:00]} 16. Nb3 {[%emt 0:00:00]} Bb6 {[%emt 0:00:00]} 17. Be3 {[%emt 0:00:00]} Ne8 {[%emt 0:00:00]} 18. Nc5 {[%emt 0:00:00]} Bxc5 {[%emt 0:00:00]} 19. Bxc5 {[%emt 0:00:00]} Rf3 {[%emt 0:00:00]} 20. Kg2 {[%emt 0:00:00]} Rdd3 {[%emt 0:00:00]} 21. Bxa7 {[%emt 0:00:00]} Rxh3 {[%emt 0:00:00]} 22. Be3 {[%emt 0:00:00]} Rh4 {[%emt 0:00:00]} 23. Kg3 {[%emt 0:00:00]} Rh6 {[%emt 0:00:00]} 24. Rad1 {[%emt 0:00:00]} Rxd1 {[%emt 0:00:00]} 25. Rxd1 {[%emt 0:00:00]} g5 {[%emt 0:00:00]} 26. Bxg5 {[%emt 0:00:00]} Rd6 {[%emt 0:00:00]} 27. Rxd6 {[%emt 0:00:00]} cxd6 {[%emt 0:00:00]} 28. Bd8 {[%emt 0:00:00]} Kf7 {[%emt 0:00:00]} 29. a4 {[%emt 0:00:00]} Ke6 {[%emt 0:00:00]} 30. a5 {[%emt 0:00:00]} Kd7 {[%emt 0:00:00]} 31. Bb6 {[%emt 0:00:00]} Kc8 {[%emt 0:00:00]} 32. f4 {[%emt 0:00:00]} Kb7 {[%emt 0:00:00]} 33. b4 {[%emt 0:00:00]} Ka6 {[%emt 0:00:00]} 34. c4 {[%emt 0:00:00]} Nf6 {[%emt 0:00:00]} 35. fxe5 {[%emt 0:00:00]} dxe5 {[%emt 0:00:00]} 36. Kf3 {[%emt 0:00:00]} g6 {[%emt 0:00:00]} 37. g5 {[%emt 0:00:00]} Nd7 {[%emt 0:00:00]} 38. Bc7 {[%emt 0:00:00]} Kb7 {[%emt 0:00:00]} 39. Bd6 {[%emt 0:00:00]} Ka6 {[%emt 0:00:00]} 40. Ke3 {[%emt 0:00:00]} c5 {[%emt 0:00:00]} 41. bxc5 {[%emt 0:00:00]} Kxa5 {[%emt 0:18:07]} 42. c6 {[%emt 0:00:00]} Nb6 {[%emt 0:01:16]} 43. Bc7 {[%emt 0:00:00]} Ka6 {[%emt 0:01:38]} 44. Bxb6 {[%emt 0:00:00]} Kxb6 {[%emt 0:00:25]} 45. Kd3 {[%emt 0:00:00]} Kxc6 {[%emt 0:00:24]} 46. Kc3 {[%emt 0:00:00]} Kc5 {[%emt 0:00:29]} 47. Kb3 {[%emt 0:00:00]} Kb6 {[%emt 0:04:53]} 48. Kb4 {[%emt 0:00:00]} Kc6 {[%emt 0:01:02]} 49. c5 {[%emt 0:00:00]} Kc7 {[%emt 0:04:36]} 50. Kb5 {[%emt 0:00:00]} Kb7 {[%emt 0:00:23]} 51. c6+ {[%emt 0:00:00]} Kc7 {[%emt 0:00:22]} 52. Kc5 {[%emt 0:00:00]} Kc8 {[%emt 0:00:57]} 53. Kd6 {[%emt 0:00:00]} Kd8 {[%emt 0:00:22]} 54. Kxe5 {[%emt 0:00:00]} Kc7 {[%emt 0:01:00]} 55. Kf6 {[%emt 0:00:00]} Kxc6 {[%emt 0:00:46]} 56. e5 {[%emt 0:00:00]} Kd7 {[%emt 0:00:03]} 57. Kf7 {[%emt 0:00:00]} Kd8 {[%emt 0:00:43]} 58. e6 {[%emt 0:00:00]} 1-0

[Event "FIDE Zonal 4-2 Women 2023"]
[Site "Dimbroko"]
[Date "2023.03.27"]
[Round "5.4"]
[White "Rodriguez Guevara, Celia M."]
[Black "Ayemou Akissi Victoire Sinchie"]
[Result "1-0"]
[ECO "A48"]
[WhiteElo "1777"]
[BlackElo "1177"]
[Annotator "NA RC COMBH"]
[PlyCount "115"]
[EventDate "2023.03.25"]
[EventType "swiss"]
[EventCountry "IVO"]
[SourceTitle "playchess.com"]
[Source "ChessBase"]
[SourceQuality "1"]
[TimeControl "40/5400+30:1800+30"]

1. d4 {[%emt 0:00:06]} Nf6 {[%emt 0:00:14]} 2. Bf4 {[%emt 0:00:23]} g6 {[%emt 0:00:17]} 3. Nf3 {[%emt 0:00:25]} Bg7 {[%emt 0:00:27]} 4. e3 {[%emt 0:00:11]} O-O {[%emt 0:00:29]} 5. Nbd2 {[%emt 0:00:37]} e6 {[%emt 0:00:40]} 6. c3 {[%emt 0:03:13]} d6 {[%emt 0:01:00]} 7. Be2 {[%emt 0:00:48]} Nc6 {[%emt 0:00:47]} 8. h3 {[%emt 0:20:20]} Re8 {[%emt 0:01:25]} 9. O-O {[%emt 0:08:58]} e5 {[%emt 0:01:41]} 10. Bg3 {[%emt 0:05:10]} e4 {[%emt 0:02:04]} 11. Ne1 {[%emt 0:00:01]} a6 {[%emt 0:00:49]} 12. a4 {[%emt 0:01:54]} Bf5 {[%emt 0:01:13]} 13. Nc2 {[%emt 0:02:10]} d5 {[%emt 0:01:09]} 14. c4 {[%emt 0:08:59]} Qe7 {[%emt 0:03:06]} 15. c5 {[%emt 0:05:09]} b6 {[%emt 0:01:33]} 16. b4 {[%emt 0:10:08]} Rec8 {[%emt 0:02:06]} 17. Rb1 {[%emt 0:14:21]} Nd8 {[%emt 0:06:01]} 18. cxb6 {[%emt 0:06:51]} cxb6 {[%emt 0:00:31]} 19. b5 {[%emt 0:01:34]} a5 {[%emt 0:01:56]} 20. Rc1 {[%emt 0:02:58]} Ne6 {[%emt 0:01:45]} 21. Na1 {[%emt 0:01:51]} Qb4 {[%emt 0:01:26]} 22. Rb1 {[%emt 0:00:58]} Qe7 {[%emt 0:02:57]} 23. Qb3 {[%emt 0:00:36]} Qb7 {[%emt 0:01:38]} 24. Rfc1 {[%emt 0:00:30]} Rxc1+ {[%emt 0:00:48]} 25. Rxc1 {[%emt 0:00:05]} Rc8 {[%emt 0:00:13]} 26. Rxc8+ {[%emt 0:01:08]} Qxc8 {[%emt 0:00:27]} 27. Qc2 {[%emt 0:00:05]} Qxc2 {[%emt 0:00:54]} 28. Nxc2 {[%emt 0:00:05]} Kf8 {[%emt 0:00:43]} 29. Bb8 {[%emt 0:01:15]} Ke8 {[%emt 0:00:59]} 30. g4 {[%emt 0:00:56]} Bxg4 {[%emt 0:01:23]} 31. hxg4 {[%emt 0:00:10]} h6 {[%emt 0:00:27]} 32. Ne1 {[%emt 0:01:16]} Bf8 {[%emt 0:00:42]} 33. Ng2 {[%emt 0:00:20]} g5 {[%emt 0:00:31]} 34. f3 {[%emt 0:01:06]} Kd7 {[%emt 0:01:00]} 35. Be5 {[%emt 0:01:21]} Bb4 {[%emt 0:01:37]} 36. Nf1 {[%emt 0:01:35]} Ne8 {[%emt 0:00:32]} 37. fxe4 {[%emt 0:00:06]} dxe4 {[%emt 1:03:30]} 38. Bc4 {[%emt 0:00:37]} f6 {[%emt 0:00:00]} 39. Bh2 {[%emt 0:00:36]} Nd6 {[%emt 0:00:00]} 40. Bd5 {[%emt 0:00:17]} Nc7 {[%emt 0:00:00]} 41. Bb3 {[%emt 0:04:17]} Nce8 {[%emt 0:00:00]} 42. Ng3 {[%emt 0:04:08]} Ba3 {[%emt 0:00:00]} 43. Bd5 {[%emt 0:06:49]} Bc1 {[%emt 0:00:00]} 44. Nxe4 {[%emt 0:00:21]} Nxe4 {[%emt 0:00:00]} 45. Bxe4 {[%emt 0:00:27]} Nd6 {[%emt 0:00:00]} 46. Bd3 {[%emt 0:02:18]} Ke6 {[%emt 0:00:00]} 47. e4 {[%emt 0:04:49]} Ke7 {[%emt 0:00:00]} 48. Kf1 {[%emt 0:03:49]} Bb2 {[%emt 0:00:00]} 49. Bg1 {[%emt 0:00:15]} Ke6 {[%emt 0:00:00]} 50. d5+ {[%emt 0:01:02]} Ke5 {[%emt 0:00:00]} 51. Bxb6 {[%emt 0:00:30]} Bc3 {[%emt 0:00:00]} 52. Bc7 {[%emt 0:02:37]} Kd4 {[%emt 0:00:00]} 53. Bxd6 {[%emt 0:02:35]} Kxd3 {[%emt 0:00:00]} 54. b6 {[%emt 0:00:23]} Bd4 {[%emt 0:00:00]} 55. b7 {[%emt 0:00:22]} Ba7 {[%emt 0:00:00]} 56. Bc7 {[%emt 0:00:09]} Kxe4 {[%emt 0:00:00]} 57. d6 {[%emt 0:00:12]} Kd5 {[%emt 0:00:00]} 58. d7 {[%emt 0:00:16]} 1-0

[Event "FIDE Zonal 4-2 Women 2023"]
[Site "Dimbroko"]
[Date "2023.03.30"]
[Round "7.1"]
[White "Rodriguez Guevara, Celia M."]
[Black "Benson, Maud"]
[Result "1/2-1/2"]
[ECO "D02"]
[WhiteElo "1777"]
[BlackElo "1381"]
[Annotator "NA RC COMBH"]
[PlyCount "116"]
[EventDate "2023.03.25"]
[EventType "swiss"]
[EventCountry "IVO"]
[SourceTitle "playchess.com"]
[Source "ChessBase"]
[SourceQuality "1"]
[TimeControl "40/5400+30:1800+30"]

1. d4 {[%emt 0:00:04]} d5 {[%emt 0:00:22]} 2. Bf4 {[%emt 0:00:10]} Nf6 {[%emt 0:01:15]} 3. e3 {[%emt 0:00:10]} e6 {[%emt 0:02:14]} 4. Nf3 {[%emt 0:00:50]} Be7 {[%emt 0:00:26]} 5. Bd3 {[%emt 0:00:44]} O-O {[%emt 0:01:08]} 6. Nbd2 {[%emt 0:03:48]} Nbd7 {[%emt 0:04:14]} 7. h3 {[%emt 0:01:09]} b6 {[%emt 0:00:58]} 8. O-O {[%emt 0:03:41]} Bb7 {[%emt 0:00:58]} 9. Ne5 {[%emt 0:05:30]} c5 {[%emt 0:02:51]} 10. c3 {[%emt 0:01:16]} c4 {[%emt 0:03:36]} 11. Bc2 {[%emt 0:03:52]} Nxe5 {[%emt 0:01:53]} 12. dxe5 {[%emt 0:01:51]} Nd7 {[%emt 0:01:37]} 13. Qh5 {[%emt 0:24:48]} g6 {[%emt 0:02:06]} 14. Qe2 {[%emt 0:09:37]} Rc8 {[%emt 0:09:01]} 15. Bh6 {[%emt 0:02:20]} Re8 {[%emt 0:00:39]} 16. f4 {[%emt 0:01:38]} f5 {[%emt 0:12:21]} 17. Nf3 {[%emt 0:04:20]} Nc5 {[%emt 0:05:54]} 18. Ng5 {[%emt 0:00:42]} Qd7 {[%emt 0:02:00]} 19. Rad1 {[%emt 0:01:30]} a5 {[%emt 0:04:06]} 20. h4 {[%emt 0:01:35]} Bf8 {[%emt 0:01:53]} 21. Bxf8 {[%emt 0:00:37]} Rxf8 {[%emt 0:01:28]} 22. Kf2 {[%emt 0:09:31]} Bc6 {[%emt 0:05:33]} 23. Rd2 {[%emt 0:04:44]} h6 {[%emt 0:03:39]} 24. Nf3 {[%emt 0:01:25]} Qe7 {[%emt 0:01:16]} 25. Rh1 {[%emt 0:00:21]} h5 {[%emt 0:06:46]} 26. Nd4 {[%emt 0:03:37]} Be8 {[%emt 0:01:34]} 27. Nf3 {[%emt 0:06:36]} b5 {[%emt 0:00:38]} 28. Rdd1 {[%emt 0:02:20]} b4 {[%emt 0:00:47]} 29. Ra1 {[%emt 0:03:17]} bxc3 {[%emt 0:01:36]} 30. bxc3 {[%emt 0:00:09]} Rb8 {[%emt 0:01:14]} 31. Rab1 {[%emt 0:01:14]} Ba4 {[%emt 0:02:22]} 32. Bxa4 {[%emt 0:00:43]} Nxa4 {[%emt 0:00:23]} 33. Qc2 {[%emt 0:00:26]} Qa3 {[%emt 0:03:51]} 34. Ng5 {[%emt 0:01:44]} Nc5 {[%emt 0:02:38]} 35. Rxb8 {[%emt 0:00:41]} Rxb8 {[%emt 0:00:18]} 36. Rb1 {[%emt 0:00:02]} Rxb1 {[%emt 0:08:24]} 37. Qxb1 {[%emt 0:00:05]} Ne4+ {[%emt 0:00:28]} 38. Nxe4 {[%emt 0:00:36]} fxe4 {[%emt 0:01:20]} 39. Qc2 {[%emt 0:01:42]} Qe7 {[%emt 0:01:16]} 40. g3 {[%emt 0:00:18]} Qd7 {[%emt 0:02:19]} 41. Qb2 {[%emt 0:30:46]} Kf7 {[%emt 0:30:31]} 42. Qb8 {[%emt 0:00:00]} Qa4 {[%emt 0:00:00]} 43. Qc7+ {[%emt 0:00:00]} Ke8 {[%emt 0:00:00]} 44. Qb8+ {[%emt 0:00:00]} Kf7 {[%emt 0:00:00]} 45. Qb2 {[%emt 0:00:00]} Qc6 {[%emt 0:00:00]} 46. Ke2 {[%emt 0:00:00]} Ke7 {[%emt 0:00:00]} 47. Qa3+ {[%emt 0:00:00]} Kf7 {[%emt 0:00:00]} 48. Qxa5 {[%emt 0:00:00]} Qb7 {[%emt 0:00:00]} 49. Qb4 {[%emt 0:00:00]} Qxb4 {[%emt 0:00:00]} 50. cxb4 {[%emt 0:00:00]} Ke7 {[%emt 0:00:00]} 51. Kd2 {[%emt 0:00:00]} Kd7 {[%emt 0:00:00]} 52. Kc3 {[%emt 0:00:00]} Kc6 {[%emt 0:00:00]} 53. a4 {[%emt 0:00:00]} Kb6 {[%emt 0:00:00]} 54. Kd4 {[%emt 0:00:00]} Kb7 {[%emt 0:00:00]} 55. Kc3 {[%emt 0:00:00]} Kb6 {[%emt 0:00:00]} 56. Kd4 {[%emt 0:00:00]} Kb7 {[%emt 0:00:00]} 57. Kc3 {[%emt 0:00:00]} Kc6 {[%emt 0:00:00]} 58. Kd4 {[%emt 0:00:00]} Kb7 {[%emt 0:00:00]} 1/2-1/2